fUST/lending_fUST_20260306
["ID","MTS","AMOUNT","RATE_DAILY","PERIOD"]
[407770958,1772785838655,-500.0,3.473e-05,2]
[407770960,1772785838665,-500.0,3.473e-05,2]
[407770961,1772785838674,-500.0,3.473e-05,2]
[407770963,1772785838683,-500.0,3.473e-05,2]
[407770965,1772785838692,-500.0,3.473e-05,2]
[407770967,1772785838702,-500.0,3.473e-05,2]
[407770970,1772785838711,-142718.68095058,3.5e-05,2]
[407770973,1772785838735,-1232938.08535393,3.5e-05,2]
[407770975,1772785838745,-484033.89454734,3.5e-05,2]
[407770977,1772785838755,-151.0,3.5e-05,2]
[407770979,1772785838764,-158.294575,3.524e-05,2]
[407770981,1772785838773,-158.294575,3.656e-05,2]
[407770983,1772785838782,-2324.1915808,3.7e-05,2]
[407770985,1772785838791,-4792.71582747,3.7e-05,2]
[407770987,1772785838800,-5825.31976635,3.7e-05,2]
[407770989,1772785838809,-5309.01779687,3.7e-05,2]
[407770991,1772785838818,-5749.56903064,3.7e-05,2]
[407770993,1772785838828,-151.0,3.7e-05,2]
[407770995,1772785838837,-158.294575,3.788e-05,2]
[407770997,1772785838846,-370.4076519,3.8e-05,2]
[407770999,1772785838855,-151.0,3.816e-05,2]
[407771001,1772785838864,-3373.3429964,3.917e-05,2]
[407771003,1772785838873,-3121.9565296,3.942e-05,2]
[407771005,1772785838882,-13060.7361087,3.945e-05,2]
[407771007,1772785838893,-151.0,3.945e-05,2]
[407771009,1772785838904,-500.0,3.953e-05,2]
[407771011,1772785838913,-500.0,3.953e-05,2]
[407771013,1772785838922,-500.0,3.953e-05,2]
[407771015,1772785838931,-264028.24576024,3.976e-05,2]
[407771017,1772785838943,-1522.28706012,3.976e-05,2]
[407771019,1772785838954,-931.56311248,3.976e-05,2]
[407771251,1772785841164,-6423.94677741,3.465e-05,2]
[407771253,1772785841175,-671.77936835,3.465e-05,2]
[407771291,1772785841525,-151.3946261,3.465e-05,2]
[407771293,1772785841536,-3924.9608205,3.465e-05,2]
[407771485,1772785843735,-2017.37791217,3.465e-05,2]
[407771487,1772785843747,-324.453074,3.465e-05,2]
[407771489,1772785843759,-361.00010595,3.465e-05,2]
[407771558,1772785846392,-1168.22444629,3.465e-05,2]
[407771559,1772785846403,-4284.49020766,3.976e-05,2]
[407771560,1772785846414,-144746.6081619,3.976e-05,2]
[407771561,1772785846554,-1478.72271682,3.976e-05,2]
[407771592,1772786459635,-243.57,3.68e-06,2]
[407771593,1772786459657,-243.57,3.72e-06,2]
[407771594,1772786459680,-243.57,3.76e-06,2]
[407771595,1772786459702,-243.57,3.8e-06,2]
[407771596,1772786459722,-284.91065008,3.254e-05,2]
[407771597,1772786459742,-500.0,3.473e-05,2]
[407771598,1772786459763,-240.80934992,3.59e-05,2]
[407771599,1772786463421,-880.14260538,3.59e-05,2]
[407771600,1772786463442,-300.0,3.772e-05,2]
[407771601,1772786463463,-300.0,3.772e-05,2]
[407771602,1772786463484,-300.0,3.772e-05,2]
[407771603,1772786463508,-219.85739462,3.773e-05,2]
[407771604,1772786467709,-2000.0,3.735e-05,2]
[407771605,1772786468596,-1815.74326145,3.735e-05,2]
[407771606,1772786468616,-184.25673855,3.773e-05,2]
[407771607,1772786469257,-95.88586683,3.773e-05,2]
[407771608,1772786469278,-500.0,3.773e-05,2]
[407771609,1772786469298,-500.0,3.773e-05,2]
[407771610,1772786469319,-500.0,3.773e-05,2]
[407771611,1772786469339,-404.11413317,3.773e-05,2]
[407771612,1772786469405,-95.88586683,3.773e-05,2]
[407771613,1772786469425,-500.0,3.773e-05,2]
[407771614,1772786469445,-512.22826099,3.773e-05,2]
[407771615,1772786469464,-500.0,3.773e-05,2]
[407771616,1772786469485,-353.72370038,3.773e-05,2]
[407771617,1772786469506,-38.1621718,3.773e-05,2]
[407771618,1772786469800,-461.8378282,3.773e-05,2]
[407771619,1772786469823,-500.0,3.773e-05,2]
[407771620,1772786469844,-500.0,3.773e-05,2]
[407771621,1772786469864,-500.0,3.773e-05,2]
[407771622,1772786469884,-38.1621718,3.773e-05,2]
[407771623,1772786470495,-461.8378282,3.773e-05,2]
[407771624,1772786470517,-500.0,3.773e-05,2]
[407771625,1772786470538,-500.0,3.773e-05,2]
[407771626,1772786470567,-538.1621718,3.797e-05,2]
[407771627,1772786470889,-2000.0,3.797e-05,2]
[407771628,1772786471188,-2000.0,3.797e-05,2]
[407771629,1772786471540,-2000.0,3.797e-05,2]
[407771630,1772786472988,-2000.0,3.797e-05,2]
[407771631,1772786473020,-2000.0,3.797e-05,2]
[407771632,1772786473055,-2000.0,3.797e-05,2]
[407771633,1772786473097,-2000.0,3.797e-05,2]
[407771634,1772786473539,-2000.0,3.797e-05,2]
[407771635,1772786474009,-2000.0,3.797e-05,2]
[407771636,1772786474434,-2000.0,3.797e-05,2]
[407771637,1772786476978,-2000.0,3.759e-05,2]
[407771638,1772786477769,-2000.0,3.759e-05,2]
[407771639,1772786478087,-2000.0,3.759e-05,2]
[407771640,1772786478508,-2000.0,3.759e-05,2]
[407771641,1772786478969,-2000.0,3.759e-05,2]
[407771642,1772786484020,-2000.0,3.759e-05,2]
[407771643,1772786484053,-2000.0,3.759e-05,2]
[407771644,1772786486033,-2000.0,3.721e-05,2]
[407771645,1772786486393,-2000.0,3.721e-05,2]
[407771646,1772786486718,-2000.0,3.721e-05,2]
[407771647,1772786487113,-2000.0,3.721e-05,2]
[407771648,1772786487412,-2000.0,3.721e-05,2]
[407771649,1772786487875,-1841.76823422,3.721e-05,2]
[407771650,1772786487900,-158.23176578,3.759e-05,2]
[407771651,1772786488316,-2000.0,3.759e-05,2]
[407771652,1772786488628,-2000.0,3.759e-05,2]
[407771653,1772786488982,-2000.0,3.759e-05,2]
[407771654,1772786489441,-2000.0,3.759e-05,2]
[407771655,1772786489937,-2000.0,3.759e-05,2]
[407771656,1772786490250,-2000.0,3.759e-05,2]
[407771657,1772786490684,-2000.0,3.759e-05,2]
[407771658,1772786491000,-2000.0,3.759e-05,2]
[407771659,1772786491335,-2000.0,3.759e-05,2]
[407771660,1772786491773,-2000.0,3.759e-05,2]
[407771661,1772786492217,-2000.0,3.759e-05,2]
[407771662,1772786493668,-2000.0,3.759e-05,2]
[407771663,1772786495680,-2000.0,3.759e-05,2]
[407771664,1772786495714,-2000.0,3.759e-05,2]
[407771665,1772786495766,-2000.0,3.759e-05,2]
[407771666,1772786496948,-2000.0,3.759e-05,2]
[407771667,1772786497361,-2000.0,3.759e-05,2]
[407771668,1772786498457,-2000.0,3.759e-05,2]
[407771669,1772786498894,-2000.0,3.759e-05,2]
[407771670,1772786499410,-2000.0,3.759e-05,2]
[407771671,1772786499819,-2000.0,3.759e-05,2]
[407771672,1772786500133,-2000.0,3.759e-05,2]
[407771673,1772786500545,-2000.0,3.759e-05,2]
[407771674,1772786501003,-2000.0,3.759e-05,2]
[407771675,1772786501433,-2000.0,3.759e-05,2]
[407771676,1772786501882,-2000.0,3.759e-05,2]
[407771677,1772786502208,-2000.0,3.759e-05,2]
[407771678,1772786502625,-2000.0,3.759e-05,2]
[407771681,1772786502951,-2000.0,3.759e-05,2]
[407771682,1772786503381,-2000.0,3.759e-05,2]
[407771683,1772786503888,-2000.0,3.759e-05,2]
[407771684,1772786504215,-2000.0,3.759e-05,2]
[407771685,1772786504546,-2000.0,3.759e-05,2]
[407771686,1772786507995,-2000.0,3.759e-05,2]
[407771687,1772786508381,-2000.0,3.759e-05,2]
[407771688,1772786508797,-2000.0,3.759e-05,2]
[407771689,1772786509173,-2000.0,3.759e-05,2]
[407771690,1772786509650,-2000.0,3.759e-05,2]
[407771691,1772786509923,-2000.0,3.759e-05,2]
[407771692,1772786510330,-2000.0,3.759e-05,2]
[407771693,1772786511101,-2000.0,3.759e-05,2]
[407771694,1772786511421,-2000.0,3.759e-05,2]
[407771695,1772786511834,-2000.0,3.759e-05,2]
[407771696,1772786512173,-2000.0,3.759e-05,2]
[407771697,1772786512609,-2000.0,3.759e-05,2]
[407771698,1772786513074,-2000.0,3.759e-05,2]
[407771699,1772786513508,-2000.0,3.759e-05,2]
[407771700,1772786513960,-2000.0,3.759e-05,2]
[407771701,1772786514294,-2000.0,3.759e-05,2]
[407771702,1772786514634,-2000.0,3.759e-05,2]
[407771703,1772786514974,-2000.0,3.759e-05,2]
[407771704,1772786515309,-2000.0,3.759e-05,2]
[407771705,1772786515653,-2000.0,3.759e-05,2]
[407771706,1772786517406,-2000.0,3.759e-05,2]
[407771707,1772786517437,-2000.0,3.759e-05,2]
[407771708,1772786517474,-2000.0,3.759e-05,2]
[407771709,1772786528256,-1953.19943134,3.759e-05,2]
[407771710,1772786528278,-46.80056866,3.773e-05,2]
[407771711,1772786528392,-453.19943134,3.773e-05,2]
[407771712,1772786528413,-500.0,3.773e-05,2]
[407771713,1772786528436,-300.0,3.796e-05,2]
[407771714,1772786528459,-746.80056866,3.797e-05,2]
[407771715,1772786528534,-2000.0,3.797e-05,2]
[407771716,1772786528730,-2000.0,3.797e-05,2]
[407771717,1772786529207,-2000.0,3.797e-05,2]
[407771718,1772786529514,-2000.0,3.797e-05,2]
[407771719,1772786530218,-2000.0,3.797e-05,2]
[407771720,1772786530439,-2000.0,3.797e-05,2]
[407771721,1772786530776,-2000.0,3.797e-05,2]
[407771722,1772786531118,-2000.0,3.797e-05,2]
[407771723,1772786532327,-2000.0,3.797e-05,2]
[407771724,1772786532703,-2000.0,3.797e-05,2]
[407771725,1772786534402,-500.0,3.773e-05,2]
[407771726,1772786534428,-1500.0,3.797e-05,2]
[407771727,1772786534714,-2000.0,3.797e-05,2]
[407771728,1772786539105,-2000.0,3.797e-05,2]
[407771729,1772786540471,-2000.0,3.797e-05,2]
[407771730,1772786540580,-2000.0,3.797e-05,2]
[407771731,1772786541021,-2000.0,3.797e-05,2]
[407771732,1772786541471,-2000.0,3.797e-05,2]
[407771733,1772786542829,-2000.0,3.797e-05,2]
[407771734,1772786543161,-500.0,3.773e-05,2]
[407771735,1772786543185,-1500.0,3.797e-05,2]
[407771736,1772786543621,-2000.0,3.797e-05,2]
[407771737,1772786545381,-2000.0,3.797e-05,2]
[407771738,1772786546441,-2000.0,3.797e-05,2]
[407771784,1772787032443,-876.86326639,3.004e-05,2]
[407771785,1772787032496,-1127.74715667,3.004e-05,2]
[407771791,1772787038535,-5981.77798304,3.004e-05,2]
[407771794,1772787038545,-279.21243708,3.251e-05,2]
[407771795,1772787038554,-300.0,3.499e-05,2]
[407771797,1772787038564,-263.0,3.499e-05,2]
[407771800,1772787038574,-778.22878889,3.5e-05,2]
[407771801,1772787038584,-1794.26935629,3.5e-05,2]
[407771803,1772787038593,-1958.00867918,3.5e-05,2]
[407771805,1772787038602,-1869.67630162,3.5e-05,2]
[407771807,1772787038611,-1630.53003347,3.5e-05,2]
[407771809,1772787038621,-959.30794591,3.5e-05,2]
[407771811,1772787038631,-2035.70848376,3.5e-05,2]
[407771813,1772787038641,-2456.14105635,3.5e-05,2]
[407771815,1772787038650,-2245.92477001,3.5e-05,2]
[407771817,1772787038659,-2359.82438207,3.5e-05,2]
[407771819,1772787038668,-500.0,3.673e-05,2]
[407771821,1772787038677,-500.0,3.673e-05,2]
[407771823,1772787038687,-500.0,3.673e-05,2]
[407771825,1772787038696,-500.0,3.673e-05,2]
[407771827,1772787038705,-500.0,3.673e-05,2]
[407771829,1772787038715,-500.0,3.673e-05,2]
[407771831,1772787038724,-500.0,3.673e-05,2]
[407771833,1772787038733,-102306.55042906,3.697e-05,2]
[407771836,1772787038749,-31805.72967605,3.697e-05,2]
[407771838,1772787038760,-5056.49508421,3.697e-05,2]
[407771840,1772787038772,-2002.18581178,3.697e-05,2]
[407772311,1772787043727,-695.7,3.697e-05,2]
[407772391,1772787046455,-7716.17021036,3.697e-05,2]
[407772392,1772787046509,-19333.32361667,3.697e-05,2]
[407772664,1772787558583,-160.409386,1.291e-05,2]
[407772665,1772787558605,-295.03940295,1.298e-05,2]
[407772666,1772787558629,-160.409386,1.304e-05,2]
[407772667,1772787558654,-160.409386,1.317e-05,2]
[407772668,1772787558676,-160.409386,1.371e-05,2]
[407772669,1772787558698,-160.409386,1.828e-05,2]
[407772670,1772787558720,-160.409386,2.285e-05,2]
[407772984,1772788231627,-170.5,3.68e-06,2]
[407772986,1772788231637,-170.5,3.72e-06,2]
[407772988,1772788231647,-289.1386149,3.74e-06,2]
[407772990,1772788231656,-170.5,3.76e-06,2]
[407772992,1772788231666,-170.5,3.8e-06,2]
[407772994,1772788231675,-341.18356558,2.374e-05,2]
[407772996,1772788231684,-160.409386,2.741e-05,2]
[407772998,1772788231693,-300.0,3.399e-05,2]
[407773000,1772788231707,-300.0,3.399e-05,2]
[407773002,1772788231719,-1200.0,3.399e-05,2]
[407773004,1772788231728,-2096.80707419,3.4e-05,2]
[407773006,1772788231737,-5302.95412982,3.4e-05,2]
[407773008,1772788231747,-198.13728409,3.4e-05,2]
[407773099,1772788237720,-4640.48647808,3.4e-05,2]
[407773101,1772788237730,-4374.29339459,3.4e-05,2]
[407773103,1772788237739,-5180.29481422,3.4e-05,2]
[407773105,1772788237748,-500.0,3.553e-05,2]
[407773107,1772788237757,-500.0,3.553e-05,2]
[407773109,1772788237766,-500.0,3.553e-05,2]
[407773111,1772788237775,-500.0,3.553e-05,2]
[407773113,1772788237784,-500.0,3.553e-05,2]
[407773115,1772788237793,-500.0,3.553e-05,2]
[407773117,1772788237803,-500.0,3.553e-05,2]
[407773119,1772788237812,-361.00010595,3.66e-05,2]
[407773121,1772788237822,-3395.4503808,3.672e-05,2]
[407773123,1772788237831,-420.0,3.739e-05,2]
[407773125,1772788237840,-625.0,3.739e-05,2]
[407773126,1772788237849,-167.9488584,3.778e-05,2]
[407773129,1772788237858,-1000.0,3.797e-05,2]
[407773131,1772788237868,-871.74367034,3.797e-05,2]
[407773132,1772788237877,-1957.856,3.924e-05,2]
[407773135,1772788237886,-2150.738,3.924e-05,2]
[407773137,1772788237896,-500.0,3.953e-05,2]
[407773138,1772788237905,-500.0,3.953e-05,2]
[407773140,1772788237914,-500.0,3.953e-05,2]
[407773143,1772788237923,-500.0,3.953e-05,2]
[407773145,1772788237933,-500.0,3.953e-05,2]
[407773147,1772788237942,-290.44366627,3.953e-05,2]
[407773149,1772788237952,-500.0,3.953e-05,2]
[407773151,1772788237961,-500.0,3.953e-05,2]
[407773153,1772788237970,-500.0,3.953e-05,2]
[407773155,1772788237979,-500.0,3.953e-05,2]
[407773157,1772788237988,-500.0,3.953e-05,2]
[407773159,1772788237997,-500.0,3.953e-05,2]
[407773160,1772788238006,-500.0,3.953e-05,2]
[407773163,1772788238016,-500.0,3.953e-05,2]
[407773165,1772788238025,-500.0,3.953e-05,2]
[407773167,1772788238037,-500.0,3.953e-05,2]
[407773169,1772788238046,-171.11159423,3.953e-05,2]
[407773171,1772788238059,-500.0,3.953e-05,2]
[407773173,1772788238068,-500.0,3.953e-05,2]
[407773175,1772788238077,-500.0,3.953e-05,2]
[407773177,1772788238087,-500.0,3.953e-05,2]
[407773179,1772788238097,-500.0,3.953e-05,2]
[407773181,1772788238107,-500.0,3.953e-05,2]
[407773183,1772788238116,-500.0,3.953e-05,2]
[407773185,1772788238127,-500.0,3.953e-05,2]
[407773187,1772788238138,-500.0,3.953e-05,2]
[407773189,1772788238147,-500.0,3.953e-05,2]
[407773191,1772788238157,-500.0,3.953e-05,2]
[407773193,1772788238166,-445.202766,3.974e-05,2]
[407773195,1772788238176,-500.0,3.974e-05,2]
[407773197,1772788238186,-500.0,3.974e-05,2]
[407773199,1772788238196,-500.0,3.974e-05,2]
[407773201,1772788238207,-162.380719,3.974e-05,2]
[407773203,1772788238216,-500.0,3.974e-05,2]
[407773205,1772788238225,-500.0,3.974e-05,2]
[407773207,1772788238234,-500.0,3.974e-05,2]
[407773209,1772788238243,-500.0,3.974e-05,2]
[407773211,1772788238252,-500.0,3.974e-05,2]
[407773212,1772788238262,-500.0,3.974e-05,2]
[407773214,1772788238272,-500.0,3.974e-05,2]
[407773217,1772788238281,-500.0,3.974e-05,2]
[407773219,1772788238291,-162.380719,3.974e-05,2]
[407773220,1772788238301,-500.0,3.974e-05,2]
[407773222,1772788238310,-168.3888056,3.974e-05,2]
[407773224,1772788238319,-500.0,3.974e-05,2]
[407773226,1772788238328,-500.0,3.974e-05,2]
[407773228,1772788238337,-174.61919141,3.974e-05,2]
[407773230,1772788238347,-500.0,3.974e-05,2]
[407773232,1772788238356,-181.08010149,3.974e-05,2]
[407773235,1772788238365,-500.0,3.974e-05,2]
[407773237,1772788238375,-500.0,3.974e-05,2]
[407773239,1772788238384,-187.78006525,3.974e-05,2]
[407773240,1772788238392,-500.0,3.974e-05,2]
[407773242,1772788238402,-232.46238277,3.974e-05,2]
[407773244,1772788238412,-194.72792766,3.974e-05,2]
[407773247,1772788238421,-500.0,3.974e-05,2]
[407773249,1772788238430,-201.93286099,3.974e-05,2]
[407773251,1772788238440,-500.0,3.974e-05,2]
[407773253,1772788238450,-158.54451069,3.974e-05,2]
[407773254,1772788238459,-209.40437684,3.974e-05,2]
[407773256,1772788238468,-500.0,3.974e-05,2]
[407773259,1772788238479,-217.15233878,3.974e-05,2]
[407773261,1772788238488,-500.0,3.974e-05,2]
[407773262,1772788238497,-225.18697532,3.974e-05,2]
[407773265,1772788238507,-500.0,3.974e-05,2]
[407773266,1772788238516,-233.51889341,3.974e-05,2]
[407773268,1772788238526,-500.0,3.974e-05,2]
[407773271,1772788238535,-242.15909246,3.974e-05,2]
[407773273,1772788238544,-500.0,3.974e-05,2]
[407773275,1772788238554,-251.11897888,3.974e-05,2]
[407773277,1772788238563,-500.0,3.974e-05,2]
[407773278,1772788238572,-500.0,3.974e-05,2]
[407773280,1772788238581,-500.0,3.974e-05,2]
[407773282,1772788238591,-260.4103811,3.974e-05,2]
[407773285,1772788238600,-250.0,3.974e-05,2]
[407773286,1772788238609,-500.0,3.974e-05,2]
[407773288,1772788238618,-250.0,3.974e-05,2]
[407773290,1772788238628,-250.0,3.974e-05,2]
[407773292,1772788238637,-270.0455652,3.974e-05,2]
[407773294,1772788238646,-280.03725112,3.974e-05,2]
[407773296,1772788238656,-151.0,3.974e-05,2]
[407773298,1772788238666,-290.39862941,3.974e-05,2]
[407773300,1772788238675,-301.1433787,3.974e-05,2]
[407773302,1772788238684,-250.0,3.974e-05,2]
[407773304,1772788238694,-500.0,3.974e-05,2]
[407773306,1772788238703,-250.0,3.974e-05,2]
[407773309,1772788238712,-250.0,3.974e-05,2]
[407773311,1772788238722,-500.0,3.974e-05,2]
[407773313,1772788238731,-250.0,3.974e-05,2]
[407773314,1772788238740,-500.0,3.974e-05,2]
[407773316,1772788238750,-250.0,3.974e-05,2]
[407773318,1772788238759,-500.0,3.974e-05,2]
[407773320,1772788238768,-250.0,3.974e-05,2]
[407773322,1772788238777,-250.0,3.974e-05,2]
[407773324,1772788238786,-500.0,3.974e-05,2]
[407773326,1772788238795,-250.0,3.974e-05,2]
[407773328,1772788238804,-500.0,3.974e-05,2]
[407773330,1772788238814,-250.0,3.974e-05,2]
[407773333,1772788238823,-250.0,3.974e-05,2]
[407773335,1772788238832,-500.0,3.974e-05,2]
[407773336,1772788238843,-250.0,3.974e-05,2]
[407773339,1772788238853,-250.0,3.974e-05,2]
[407773340,1772788238862,-500.0,3.974e-05,2]
[407773343,1772788238871,-250.0,3.974e-05,2]
[407773345,1772788238881,-250.0,3.974e-05,2]
[407773347,1772788238890,-250.0,3.974e-05,2]
[407773349,1772788238899,-500.0,3.974e-05,2]
[407773350,1772788238908,-250.0,3.974e-05,2]
[407773353,1772788238918,-250.0,3.974e-05,2]
[407773355,1772788238927,-398.72272518,3.974e-05,2]
[407773357,1772788238937,-500.0,3.974e-05,2]
[407773359,1772788238946,-250.0,3.974e-05,2]
[407773361,1772788238956,-250.0,3.974e-05,2]
[407773363,1772788238966,-500.0,3.974e-05,2]
[407773365,1772788238975,-250.0,3.974e-05,2]
[407773367,1772788238984,-250.0,3.974e-05,2]
[407773369,1772788238994,-500.0,3.974e-05,2]
[407773371,1772788239003,-250.0,3.974e-05,2]
[407773373,1772788239012,-500.0,3.974e-05,2]
[407773375,1772788239022,-250.0,3.974e-05,2]
[407773377,1772788239031,-250.0,3.974e-05,2]
[407773379,1772788239040,-500.0,3.974e-05,2]
[407773381,1772788239049,-250.0,3.974e-05,2]
[407773382,1772788239058,-250.0,3.974e-05,2]
[407773385,1772788239068,-500.0,3.974e-05,2]
[407773387,1772788239077,-250.0,3.974e-05,2]
[407773388,1772788239087,-250.0,3.974e-05,2]
[407773390,1772788239096,-250.0,3.974e-05,2]
[407773392,1772788239105,-266.03970536,3.974e-05,2]
[407773394,1772788239115,-250.0,3.974e-05,2]
[407773396,1772788239125,-537.6845,3.974e-05,2]
[407773398,1772788239138,-53100.47843396,3.976e-05,2]
[407773402,1772788239165,-2716.23165476,3.976e-05,2]
[407773404,1772788239176,-6020.13623295,3.976e-05,2]
[407773509,1772788240154,-308.47289201,3.976e-05,2]
[407773511,1772788240166,-7909.01872154,3.976e-05,2]
[407773782,1772788242943,-16165.12467085,3.976e-05,2]
[407773784,1772788242954,-285.0,3.976e-05,2]
[407773786,1772788242965,-366.41054647,3.976e-05,2]
[407773796,1772788243048,-359.06710493,3.976e-05,2]
[407774130,1772788246427,-287.04,3.936e-05,2]
[407774132,1772788246438,-5437.9837775,3.936e-05,2]
[407774135,1772788246449,-2782.4324965,3.936e-05,2]
[407774137,1772788246459,-9102.5390585,3.976e-05,2]
[407774139,1772788246469,-11557.80828238,3.976e-05,2]
[407774141,1772788246480,-6804.49131307,3.976e-05,2]
[407774521,1772789431874,-191.182807,3.194e-05,2]
[407774523,1772789431884,-276.53217129,3.267e-05,2]
[407774525,1772789431893,-98.30005258,3.325e-05,2]
[407774527,1772789431906,-92.88275442,3.325e-05,2]
[407774529,1772789431915,-160.20594192,3.558e-05,2]
[407774531,1772789431927,-30.97686508,3.558e-05,2]
[407774533,1772789431936,-300.0,3.699e-05,2]
[407774535,1772789431945,-337.67393379,3.7e-05,2]
[407774537,1772789431956,-479.84638731,3.7e-05,2]
[407774539,1772789431967,-250.5264,3.7e-05,2]
[407775021,1772789438053,-1684.00014908,3.663e-05,2]
[407775022,1772789438065,-3610.44908879,3.663e-05,2]
[407775023,1772789438075,-1889.23805799,3.7e-05,2]
[407775024,1772789438084,-6517.5934766,3.7e-05,2]
[407775025,1772789438110,-823.5929316,3.7e-05,2]
[407775026,1772789438119,-2488.85191475,3.7e-05,2]
[407775140,1772789443137,-644.0,3.7e-05,2]
[407775169,1772789445857,-2500.0,3.7e-05,2]
[407775170,1772789445871,-348.56387288,3.7e-05,2]
[407775171,1772789445883,-6642.85281853,3.7e-05,2]
[407775172,1772789445894,-57.93330859,3.7e-05,2]
[407775173,1772789445980,-348.01294213,3.7e-05,2]
[407775174,1772789445994,-1279.77409205,3.7e-05,2]
[407775373,1772790632058,-300.0,3.552e-05,2]
[407775375,1772790632069,-271.00152786,3.552e-05,2]
[407775376,1772790632079,-518.23469653,3.553e-05,2]
[407775379,1772790632092,-512.9,3.553e-05,2]
[407775381,1772790632104,-557.44,3.553e-05,2]
[407775383,1772790632116,-527.879,3.553e-05,2]
[407775879,1772790646109,-5452.71465395,3.517e-05,2]
[407775880,1772790646120,-1577.28534605,3.7e-05,2]
[407776129,1772791567060,1095.99,0.0001,30]
[407776133,1772791627054,548.0,0.0001,30]
[407776180,1772791687106,424.0,0.0001,30]
[407776181,1772791747047,274.0,0.0001,30]
[407776253,1772791832130,-191.182807,3.218e-05,2]
[407776255,1772791832147,-265.5814973,3.351e-05,2]
[407776257,1772791832166,-300.0,3.482e-05,2]
[407776259,1772791832179,-404.77816268,3.483e-05,2]
[407776261,1772791832189,-500.0,3.483e-05,2]
[407776263,1772791832200,-500.0,3.483e-05,2]
[407776265,1772791832217,-500.0,3.483e-05,2]
[407776267,1772791832233,-500.0,3.483e-05,2]
[407776269,1772791832243,-500.0,3.483e-05,2]
[407776271,1772791832252,-500.0,3.483e-05,2]
[407776273,1772791832261,-500.0,3.483e-05,2]
[407776274,1772791832271,-500.0,3.483e-05,2]
[407776275,1772791832280,-500.0,3.483e-05,2]
[407776277,1772791832289,-500.0,3.483e-05,2]
[407776279,1772791832298,-58.29487965,3.483e-05,2]
[407776281,1772791832313,-441.70512035,3.483e-05,2]
[407776283,1772791832322,-1200.48487965,3.5e-05,3]
[407776405,1772791838283,-5518.78586637,3.5e-05,3]
[407776407,1772791838293,-1631.22815309,3.5e-05,3]
[407776482,1772791840770,-6604.5152511,3.5e-05,3]
[407776483,1772791840791,-7477.50707506,3.5e-05,3]
[407776484,1772791840802,-3390.08050159,3.5e-05,3]
[407776485,1772791840811,-8411.50955553,3.5e-05,3]
[407776486,1772791840820,-11237.5325878,3.502e-05,2]
[407776500,1772791846212,-1702.28009644,3.502e-05,2]
[407776501,1772791846318,-7464.35186406,3.502e-05,2]
[407776731,1772792290693,344.0,0.0001,30]
[407776857,1772793032301,-349.93697203,1.921e-05,2]
[407776858,1772793032314,-477.36302797,1.921e-05,2]
[407776859,1772793032325,-827.3,1.94e-05,2]
[407776860,1772793032335,-260.26986736,1.95e-05,2]
[407776861,1772793032345,-827.3,2e-05,2]
[407776862,1772793032356,-726.5,2.3e-05,2]
[407776863,1772793032367,-548.9,2.7e-05,2]
[407776864,1772793032376,-125.16162738,3e-05,3]
[407776994,1772793038494,-423.63837262,3e-05,3]
[407776995,1772793038504,-34.90060244,3.3e-05,3]
[407777003,1772793039265,-486.19939756,3.3e-05,3]
[407777004,1772793039275,-300.0,3.399e-05,2]
[407777005,1772793039284,-858.48290363,3.4e-05,3]
[407777006,1772793039293,-2276.32551249,3.4e-05,3]
[407777007,1772793039303,-2035.29755358,3.4e-05,3]
[407777008,1772793039312,-1822.17277277,3.4e-05,3]
[407777009,1772793039321,-687.3,3.44e-05,3]
[407777010,1772793039331,-2827.0,3.48e-05,2]
[407777011,1772793039340,-151.0,3.48e-05,2]
[407777012,1772793039349,-151.0,3.48e-05,2]
[407777013,1772793039359,-151.0,3.48e-05,2]
[407777014,1772793039368,-3720.906204,3.561e-05,2]
[407777015,1772793039377,-11916.87538731,3.566e-05,2]
[407777016,1772793039387,-151.0,3.566e-05,2]
[407777017,1772793039396,-151.0,3.566e-05,2]
[407777018,1772793039405,-151.0,3.566e-05,2]
[407777019,1772793039414,-420.0,3.739e-05,2]
[407777020,1772793039423,-1510.50526263,3.776e-05,2]
[407777021,1772793039433,-2150.738,3.776e-05,2]
[407777022,1772793039442,-2968.71800902,3.8e-05,3]
[407777023,1772793039451,-3943.82652511,3.8e-05,3]
[407777024,1772793039460,-6032.71928931,3.8e-05,3]
[407777025,1772793039469,-1224.3643786,3.8e-05,3]
[407777026,1772793039479,-6457.42526986,3.8e-05,3]
[407777027,1772793039488,-4988.27290715,3.8e-05,3]
[407777028,1772793039499,-4713.07163944,3.8e-05,3]